bitfinex/quotes_BTCUSD_20260127
["timestamp","ask_amount","ask_price","bid_price","bid_amount"]
[1769534730133,0.22745711,87929.0,87904.0,0.01499092]
[1769534730345,0.12302544,87930.0,87904.0,0.01499092]
[1769534730550,0.02322019,87929.0,87904.0,0.01499092]
[1769534730686,0.05686928,87921.0,87904.0,0.0001397]
[1769534730887,0.0568702,87920.0,87904.0,0.0001397]
[1769534731090,0.22747083,87924.0,87904.0,0.0001397]
[1769534731446,0.0568699,87920.0,87904.0,0.0001397]
[1769534731650,0.02322019,87928.0,87904.0,0.0001397]
[1769534731878,0.05686964,87921.0,87904.0,0.0001397]
[1769534732176,0.05687287,87916.0,87904.0,0.0001397]
[1769534732385,0.05687214,87917.0,87904.0,0.0001397]
[1769534732596,0.02322019,87926.0,87904.0,0.0001397]
[1769534732819,0.12302544,87925.0,87904.0,0.0001397]
[1769534733027,0.05687204,87917.0,87904.0,0.0001397]
[1769534733247,0.05687258,87916.0,87904.0,0.0001397]
[1769534733433,0.02322019,87926.0,87904.0,0.0001397]
[1769534733434,0.02322019,87937.0,87916.0,0.01]
[1769534733641,0.02322019,87937.0,87916.0,0.00634863]
[1769534733642,0.05686383,87930.0,87916.0,0.00634863]
[1769534733845,0.02322019,87937.0,87904.0,0.12506482]
[1769534733987,0.05686283,87931.0,87906.0,0.12492512]
[1769534734189,0.05686265,87932.0,87906.0,0.14990924]
[1769534734387,0.05686018,87935.0,87907.0,0.13993001]
[1769534734589,0.05686534,87928.0,87907.0,0.13993001]
[1769534734790,0.22744781,87933.0,87907.0,0.13993001]
[1769534734989,0.05686526,87929.0,87907.0,0.13993001]
[1769534735179,0.02322019,87936.0,87907.0,0.13993001]
[1769534735374,0.05686654,87926.0,87908.0,0.01650538]
[1769534735640,0.12302544,87937.0,87908.0,0.01650538]
[1769534735861,0.05686552,87927.0,87908.0,0.01650538]
[1769534736140,0.12302544,87935.0,87908.0,0.01650538]
[1769534736363,0.86399607,87964.0,87904.0,0.0001397]
[1769534736364,0.02322019,87918.0,87904.0,0.0001397]
[1769534736789,0.05687242,87917.0,87904.0,0.0001397]
[1769534736992,0.02322019,87918.0,87904.0,0.0001397]
[1769534737448,0.14624563,87938.0,87904.0,0.0001397]
[1769534737666,0.02322019,87934.0,87904.0,0.0001397]
[1769534737884,0.1209,87934.0,87904.0,0.0001397]
[1769534738102,0.14624563,87929.0,87904.0,0.0001397]
[1769534738313,0.02322019,87928.0,87904.0,0.0001397]
[1769534738531,0.36462187,87920.0,87904.0,0.0001397]
[1769534738739,0.02322019,87920.0,87904.0,0.0001397]
[1769534739165,0.05686831,87923.0,87904.0,0.0001397]
[1769534739377,0.05686436,87929.0,87904.0,0.0001397]
[1769534739610,0.05686436,87929.0,87904.0,0.01651221]
[1769534739811,0.02322019,87931.0,87904.0,0.01651221]
[1769534740020,0.14624563,87931.0,87904.0,0.01651221]
[1769534740441,0.12302544,87931.0,87904.0,0.01651221]
[1769534740654,0.02322019,87930.0,87904.0,0.01507583]
[1769534740857,0.02322019,87938.0,87906.0,0.02498412]
[1769534741010,0.02322019,87938.0,87898.0,0.01367615]
[1769534741011,0.266245,87937.0,87909.0,0.12492512]
[1769534741217,0.22743813,87936.0,87909.0,0.13475951]
[1769534741441,0.02335981,87938.0,87909.0,0.11312348]
[1769534741642,0.05687286,87916.0,87893.0,0.12492512]
[1769534742002,0.05687286,87916.0,87877.0,0.05689706]
[1769534742003,0.34140168,87920.0,87894.0,0.03866027]
[1769534742167,0.12302544,87925.0,87895.0,0.01367615]
[1769534742388,0.000476,87951.0,87911.0,0.14990924]
[1769534742585,0.34140168,87940.0,87913.0,0.12492512]
[1769534742786,0.04644271,87939.0,87895.0,0.01367615]
[1769534743017,0.02322019,87934.0,87904.0,0.12492512]
[1769534743313,0.02322019,87934.0,87910.0,0.12492512]
[1769534743509,0.05685731,87940.0,87910.0,0.12492512]
[1769534743510,0.05685864,87938.0,87910.0,0.12492512]
[1769534743737,0.34186706,87950.0,87910.0,0.14990924]
[1769534743738,0.22742628,87941.0,87910.0,0.14990924]
[1769534743913,0.05685991,87936.0,87911.0,0.13878525]
[1769534744142,0.14624563,87942.0,87913.0,0.12492512]
[1769534744263,0.34186706,87950.0,87915.0,0.12492512]
[1769534744462,0.34186706,87950.0,87909.0,0.01367615]
[1769534744463,0.14624563,87939.0,87909.0,0.01367615]
[1769534744880,0.14624563,87939.0,87910.0,0.12492512]
[1769534745091,0.39825927,87940.0,87912.0,0.12492512]
[1769534745308,0.34140168,87940.0,87916.0,0.12492512]
[1769534745507,0.05686,87936.0,87916.0,0.12492512]
[1769534745677,0.34140168,87940.0,87917.0,0.14990924]
[1769534745884,0.05686145,87934.0,87919.0,0.12492512]
[1769534746093,0.12302544,87944.0,87916.0,0.01635854]
[1769534746326,0.34140168,87940.0,87916.0,0.01635854]
[1769534747314,0.34140168,87940.0,87917.0,0.12492512]
[1769534747517,0.02322019,87943.0,87917.0,0.12492512]
[1769534747970,0.00046538,87950.0,87920.0,0.02498412]
[1769534748202,0.00046538,87950.0,87925.0,0.14990924]
[1769534748420,0.00046538,87950.0,87926.0,0.02498412]
[1769534748604,0.00046538,87950.0,87930.0,0.02498412]
[1769534748735,0.00046538,87950.0,87933.0,0.12492512]
[1769534748951,0.00046538,87950.0,87935.0,0.14990924]
[1769534749287,0.00046538,87950.0,87935.0,0.12492512]
[1769534749491,0.00046538,87950.0,87937.0,0.12492512]
[1769534749670,0.02322019,87970.0,87941.0,0.02498412]
[1769534749880,0.02322019,87970.0,87943.0,0.14990924]
[1769534749881,0.00013953,87967.0,87943.0,0.14990924]
[1769534750077,0.00013953,87967.0,87935.0,0.01249251]
[1769534750279,0.34140168,87960.0,87934.0,0.12492512]
[1769534750481,0.05685106,87951.0,87934.0,0.12492512]
[1769534750666,0.12302544,87957.0,87926.0,0.02498412]
[1769534750862,0.01128222,87967.0,87929.0,0.02498412]
[1769534751071,0.01128222,87967.0,87933.0,0.02498412]
[1769534751287,0.01128222,87967.0,87936.0,0.12492512]
[1769534751582,0.01128222,87967.0,87940.0,0.12492512]
[1769534751803,0.01128222,87967.0,87942.0,0.12492512]
[1769534751983,0.01128222,87967.0,87942.0,0.14990924]
[1769534752324,0.01128222,87967.0,87943.0,0.02498412]
[1769534752712,0.05684706,87956.0,87943.0,0.02498412]
[1769534752911,0.22737468,87961.0,87943.0,0.02498412]
[1769534752912,0.01128222,87967.0,87943.0,0.02498412]
[1769534753146,0.05684517,87959.0,87944.0,0.01499092]
[1769534753348,0.01128222,87967.0,87945.0,0.12492512]
[1769534753920,0.01128222,87967.0,87943.0,0.02498412]
[1769534754140,0.34140168,87960.0,87943.0,0.02498412]
[1769534754355,0.34140168,87960.0,87913.0,0.05687407]
[1769534754356,0.02423503,87959.0,87932.0,0.12822338]
[1769534754584,0.02423503,87959.0,87934.0,0.12822338]
[1769534755015,0.34140168,87950.0,87934.0,0.15105087]
[1769534755234,0.05684954,87952.0,87934.0,0.15105087]
[1769534755450,0.05685042,87951.0,87936.0,0.02282749]
[1769534755662,0.13258293,87957.0,87936.0,0.02282749]
[1769534755884,0.02293632,87958.0,87937.0,0.12822338]
[1769534756424,0.02293632,87958.0,87936.0,0.02282749]
[1769534756620,0.02293632,87958.0,87861.0,0.05691248]
[1769534756621,0.02423503,87949.0,87898.0,0.12822338]
[1769534756835,0.34140168,87940.0,87919.0,0.12822338]
[1769534756979,0.05685904,87937.0,87919.0,0.12822338]
[1769534757179,0.0568584,87938.0,87921.0,0.15105087]
[1769534757434,0.05685797,87939.0,87921.0,0.12822338]
[1769534757668,0.02423503,87947.0,87923.0,0.12822338]
[1769534757872,0.121203,87957.0,87926.0,0.02282749]
[1769534758076,0.02423503,87958.0,87929.0,0.12822338]
[1769534758278,0.02423503,87958.0,87926.0,0.00046538]
[1769534758279,0.05684967,87952.0,87931.0,0.15105087]
[1769534758479,0.05685124,87949.0,87931.0,0.15105087]
[1769534758633,0.15681796,87958.0,87931.0,0.15105087]
[1769534758856,0.07405699,87958.0,87932.0,0.02282749]
[1769534759050,0.07405699,87958.0,87934.0,0.02282749]
[1769534759215,0.11684,87968.0,87936.0,0.02282749]
[1769534759414,0.13305893,87979.0,87939.0,0.12822338]
[1769534759415,0.13258293,87971.0,87939.0,0.12822338]
[1769534759613,0.13258293,87959.0,87940.0,0.02282749]
[1769534760069,0.05685021,87951.0,87940.0,0.02282749]
[1769534760293,0.05684937,87952.0,87940.0,0.02282749]
[1769534760507,0.05684967,87953.0,87940.0,0.02282749]
[1769534760707,0.34140168,87960.0,87937.0,0.01367615]
[1769534760910,0.05685035,87951.0,87938.0,0.0164727]
[1769534761138,0.36563671,87960.0,87936.0,0.12822338]
[1769534761384,0.000476,87979.0,87926.0,0.00046538]
[1769534761385,0.13258293,87948.0,87926.0,0.00046538]
[1769534761623,0.02423503,87947.0,87927.0,0.01367615]
[1769534761828,0.13258293,87946.0,87926.0,0.00046538]
[1769534762036,0.02423503,87947.0,87927.0,0.01367615]
[1769534762198,0.34140168,87950.0,87928.0,0.12822338]
[1769534762436,0.05684014,87966.0,87930.0,0.12822338]
[1769534762611,0.02423503,87955.0,87930.0,0.12822338]
[1769534762768,0.05685015,87951.0,87930.0,0.12822338]
[1769534762980,0.02423503,87954.0,87930.0,0.15105087]
[1769534763178,0.15439098,87953.0,87930.0,0.15105087]
[1769534763470,0.02423503,87954.0,87931.0,0.01651924]
[1769534763735,0.15681796,87954.0,87931.0,0.01651924]
[1769534764107,0.15681796,87954.0,87931.0,0.03019539]
[1769534764283,0.15681796,87954.0,87931.0,0.15841877]
[1769534764491,0.05685207,87948.0,87931.0,0.15841877]
[1769534764749,0.02423503,87978.0,87948.0,0.12822338]
[1769534764934,0.01125551,87970.0,87950.0,0.12822338]
[1769534765086,0.05683414,87976.0,87952.0,0.12822338]
[1769534765270,0.34140168,87970.0,87953.0,0.01476251]
[1769534765470,0.34140168,87970.0,87939.0,0.12822338]
[1769534765471,0.02423503,87968.0,87939.0,0.12822338]
[1769534765717,0.01160122,87970.0,87953.0,0.12822338]
[1769534765913,0.5,87976.0,87953.0,0.12822338]
[1769534766350,0.05683546,87974.0,87953.0,0.12822338]
[1769534766566,0.50013956,87976.0,87953.0,0.12822338]
[1769534766777,0.01127947,87974.0,87955.0,0.12655551]
[1769534766950,0.50013956,87976.0,87955.0,0.10987296]
[1769534767157,0.50013956,87976.0,87957.0,0.12676153]
[1769534767355,0.50013956,87976.0,87957.0,0.11360079]
[1769534767532,0.50013956,87976.0,87957.0,0.10482192]
[1769534767715,0.50013956,87976.0,87958.0,0.00422975]
[1769534767716,0.05683746,87971.0,87958.0,0.00422975]
[1769534767916,0.05683606,87973.0,87957.0,0.10189364]
[1769534768140,0.05683606,87973.0,87957.0,0.09113496]
[1769534768316,0.01113869,87974.0,87957.0,0.07902609]
[1769534768535,0.05683754,87971.0,87957.0,0.069619]
[1769534768891,0.50013956,87976.0,87958.0,0.12822338]
[1769534768892,0.35982909,87976.0,87958.0,0.12822338]
[1769534769096,0.02732,88000.0,87973.0,0.01367615]
[1769534769250,0.02732,88000.0,87974.0,0.11331294]
[1769534769449,0.02732,88000.0,87976.0,0.12666153]
[1769534769777,0.05682267,87994.0,87977.0,0.11331294]
[1769534770019,0.04410171,87993.0,87978.0,0.11331294]
[1769534770180,0.04410171,87993.0,87977.0,0.00013956]
[1769534770181,0.02423503,87986.0,87977.0,0.00013956]
[1769534770476,0.0001,87998.0,87977.0,0.00013956]
[1769534770477,0.05692008,87998.0,87977.0,0.00013956]
[1769534770723,0.0001,87998.0,87978.0,0.12822338]
[1769534770899,0.03084168,87997.0,87978.0,0.12822338]
[1769534771096,0.0001,87998.0,87978.0,0.12822338]
[1769534771239,0.0001,87998.0,87979.0,0.01367615]
[1769534771444,0.0001,87998.0,87977.0,0.00013956]
[1769534771702,0.02423503,87988.0,87977.0,0.00013956]
[1769534772768,0.02423503,87981.0,87962.0,0.01367615]
[1769534772974,0.02437451,87981.0,87962.0,0.01367615]
[1769534773170,0.02437451,87981.0,87960.0,0.14189953]
[1769534773171,0.33995346,87980.0,87960.0,0.14189953]
[1769534773375,0.00013948,87981.0,87940.0,0.16996942]
[1769534773376,0.02423503,87969.0,87950.0,0.09065035]
[1769534773578,0.02423503,87968.0,87951.0,0.01367615]
[1769534773776,0.02437451,87981.0,87952.0,0.12822338]
[1769534773963,0.02437451,87981.0,87954.0,0.12822338]
[1769534774161,0.00013948,87981.0,87965.0,0.01367615]
[1769534774377,0.00013948,87981.0,87966.0,0.1216555]
[1769534774590,0.00013948,87981.0,87965.0,0.01367615]
[1769534774591,0.05682356,87992.0,87968.0,0.12822338]
[1769534774791,0.05682141,87995.0,87968.0,0.12836286]
[1769534775007,0.05682696,87987.0,87969.0,0.01367615]
[1769534775216,0.13258293,87994.0,87968.0,0.00013948]
[1769534775426,0.02423503,87989.0,87968.0,0.00013948]
[1769534775650,0.13258293,87986.0,87968.0,0.00013948]
[1769534775857,0.33995346,87990.0,87968.0,0.00013948]
[1769534775858,0.02423503,87983.0,87968.0,0.00013948]
[1769534776072,0.33995346,87990.0,87968.0,0.00013948]
[1769534776498,0.13268293,87998.0,87968.0,0.00013948]
[1769534776704,0.08105971,87990.0,87969.0,0.0142039]
[1769534776922,0.02423503,87990.0,87969.0,0.0142039]
[1769534777152,0.08105968,87990.0,87968.0,0.00013948]
[1769534777581,0.02423503,87990.0,87968.0,0.00013948]
[1769534778615,0.08105982,87990.0,87969.0,0.12822338]
[1769534778811,0.05682841,87985.0,87968.0,0.00013948]
[1769534779024,0.02423503,87985.0,87968.0,0.00013948]
[1769534779222,0.07401207,87985.0,87968.0,0.00013948]
[1769534779730,0.02423503,87985.0,87968.0,0.00013948]
[1769534780174,0.02423503,87983.0,87968.0,0.00013948]
[1769534780353,0.33995346,87980.0,87968.0,0.00013948]
[1769534780612,0.33995346,87980.0,87958.0,0.0905748]
[1769534780613,0.02423503,87975.0,87958.0,0.0905748]
[1769534780837,0.02423503,87975.0,87957.0,0.0905748]
[1769534780838,0.02437446,87975.0,87957.0,0.0905748]
[1769534781072,0.00013943,87975.0,87958.0,0.12822338]
[1769534781286,0.02437446,87975.0,87957.0,0.0905748]
[1769534781504,0.13258293,87974.0,87957.0,0.0905748]
[1769534781741,0.02423503,87973.0,87953.0,0.0905748]
[1769534781972,0.02423503,87973.0,87954.0,0.0905748]
[1769534782221,0.02423503,87968.0,87950.0,0.0905748]
[1769534782449,0.02423503,87968.0,87947.0,0.0905748]
[1769534782671,0.02423503,87968.0,87944.0,0.21879818]
[1769534782913,0.08107444,87968.0,87944.0,0.21879818]
[1769534783132,0.05683949,87967.0,87944.0,0.21879818]
[1769534783354,0.33995346,87960.0,87942.0,0.0905748]
[1769534783570,0.02329135,87959.0,87938.0,0.0905748]
[1769534784019,0.22734886,87971.0,87933.0,0.01367615]
[1769534784020,0.12298064,87958.0,87937.0,0.0905748]
[1769534784241,0.02329135,87955.0,87933.0,0.10425095]
[1769534784456,0.0235808,87953.0,87934.0,0.0905748]
[1769534784680,0.0235808,87953.0,87933.0,0.10425095]
[1769534784920,0.0235808,87949.0,87930.0,0.0905748]
[1769534785131,0.04862254,87954.0,87922.0,0.0786]
[1769534785132,0.0235808,87945.0,87928.0,0.0905748]
[1769534785352,0.08043511,87945.0,87927.0,0.0905748]
[1769534785575,0.22742003,87944.0,87925.0,0.0905748]
[1769534785812,0.0235808,87939.0,87923.0,0.01367615]
[1769534786454,0.0235808,87939.0,87923.0,0.00046538]
[1769534786750,0.0235808,87939.0,87923.0,0.01414153]
[1769534787184,0.0235808,87939.0,87923.0,0.00046538]
[1769534787804,0.05685712,87940.0,87915.0,0.0905748]
[1769534787805,0.0235808,87938.0,87915.0,0.0905748]
[1769534788008,0.0235808,87934.0,87915.0,0.09071442]
[1769534788212,0.13052803,87937.0,87915.0,0.00013962]
[1769534788487,0.13052803,87934.0,87915.0,0.00013962]
[1769534788693,0.0235808,87931.0,87915.0,0.00013962]
[1769534790564,0.36353426,87930.0,87915.0,0.00013962]
[1769534790748,0.0235808,87930.0,87915.0,0.00013962]
[1769534792399,0.11684,87949.0,87915.0,0.00013962]
[1769534792400,0.05685888,87937.0,87915.0,0.00013962]
[1769534792580,0.06405516,87942.0,87915.0,0.00013962]
[1769534792581,0.33995346,87940.0,87916.0,0.0123764]
[1769534792803,0.33995346,87950.0,87918.0,0.12362442]
[1769534793015,0.0235808,87944.0,87918.0,0.13730057]
[1769534793672,0.13052803,87943.0,87918.0,0.13730057]
[1769534793869,0.13052803,87943.0,87918.0,0.12362442]
[1769534794054,0.13052803,87943.0,87919.0,0.01367615]
[1769534794262,0.0130528,87942.0,87919.0,0.01367615]
[1769534794462,0.0130528,87942.0,87918.0,0.12362442]
[1769534794463,0.13052803,87958.0,87922.0,0.01367615]
[1769534794711,0.24099903,87957.0,87922.0,0.01367615]
[1769534794872,0.08043317,87948.0,87922.0,0.16229378]
[1769534795078,0.08043317,87948.0,87923.0,0.12362442]
[1769534795516,0.0235808,87948.0,87923.0,0.12362442]
[1769534795717,0.0235808,87948.0,87924.0,0.01622938]
[1769534796021,0.0235808,87948.0,87925.0,0.12362442]
[1769534796234,0.62578354,88000.0,87928.0,0.02382248]
[1769534796235,0.0235808,87957.0,87928.0,0.02382248]
[1769534796385,0.0235808,87957.0,87929.0,0.1212827]
[1769534796587,0.05684887,87953.0,87930.0,0.01679488]
[1769534796805,0.0235808,87953.0,87931.0,0.01052665]
[1769534797014,0.05685143,87949.0,87931.0,0.00349345]
[1769534797212,0.05685152,87949.0,87930.0,0.01445178]
[1769534797440,0.05685152,87949.0,87929.0,0.12362442]
[1769534797441,0.05685214,87948.0,87929.0,0.12362442]
[1769534797681,0.05685214,87948.0,87929.0,0.11352058]
[1769534797956,0.04383581,87948.0,87929.0,0.10200494]
[1769534798096,0.00594038,88034.0,87915.0,0.00013962]
[1769534798097,0.0235808,87945.0,87918.0,0.11684]
[1769534798318,0.0235808,87943.0,87919.0,0.12362442]
[1769534798741,0.39680452,87950.0,87921.0,0.12362442]
[1769534798945,0.0235808,87951.0,87924.0,0.02499321]
[1769534799154,0.03611156,87951.0,87927.0,0.12362442]
[1769534799568,0.09296167,87951.0,87927.0,0.12362442]
[1769534799779,0.13052803,87950.0,87927.0,0.12362442]
[1769534800395,0.0235808,87949.0,87919.0,0.01367615]
[1769534800594,0.13052803,87946.0,87919.0,0.01367615]
[1769534800898,0.05685676,87941.0,87919.0,0.01367615]
[1769534801101,0.0235808,87941.0,87919.0,0.01367615]
[1769534801277,0.08043715,87941.0,87919.0,0.01367615]
[1769534801897,0.0235808,87938.0,87915.0,0.00013962]
[1769534802244,0.33995346,87930.0,87915.0,0.00013962]
[1769534802461,0.13052803,87928.0,87915.0,0.00013962]
[1769534802661,0.0235808,87929.0,87915.0,0.00013962]
[1769534803002,0.13052803,87929.0,87915.0,0.00013962]
[1769534803206,0.05685785,87939.0,87915.0,0.00013962]
[1769534803407,0.33995346,87950.0,87917.0,0.12362442]
[1769534803408,0.0235808,87937.0,87917.0,0.12362442]
[1769534803612,0.0235808,87937.0,87917.0,0.14861763]
[1769534804212,0.0235808,87943.0,87919.0,0.12362442]
[1769534804411,0.0235808,87943.0,87915.0,0.00013962]
[1769534804412,0.0235808,87943.0,87924.0,0.01367615]
[1769534804597,0.13052803,87956.0,87927.0,0.12362442]
[1769534804799,0.13052803,87956.0,87931.0,0.12362442]
[1769534804995,0.08540497,87975.0,87925.0,0.12362442]
[1769534804996,0.0235808,87953.0,87925.0,0.12362442]
[1769534805252,0.13052803,87948.0,87925.0,0.12362442]
[1769534805452,0.13052803,87948.0,87919.0,0.0905748]
[1769534805453,0.0235808,87941.0,87919.0,0.0905748]
[1769534805712,0.0235808,87940.0,87924.0,0.01367615]
[1769534805931,0.0235808,87940.0,87919.0,0.0905748]
[1769534806149,0.0235808,87940.0,87924.0,0.01367615]
[1769534806363,0.0235808,87948.0,87924.0,0.12362442]
[1769534806769,0.13052803,87947.0,87924.0,0.12362442]
[1769534806975,0.13052803,87947.0,87925.0,0.01367615]
[1769534807187,0.0235808,87945.0,87924.0,0.12362442]
[1769534807612,0.0235808,87945.0,87923.0,0.0905748]
[1769534807984,0.33995346,87960.0,87924.0,0.01367615]
[1769534808126,0.13052803,87949.0,87926.0,0.12362442]
[1769534808746,0.13052803,87949.0,87926.0,0.14861763]
[1769534809154,0.15410883,87949.0,87926.0,0.14861763]
[1769534809980,0.15410883,87949.0,87916.0,0.13597553]
[1769534809981,0.13052803,87949.0,87916.0,0.13597553]
[1769534810213,0.13052803,87933.0,87917.0,0.01367615]
[1769534810424,0.13052803,87939.0,87918.0,0.02499321]
[1769534810747,0.13052803,87939.0,87919.0,0.02499321]
[1769534810880,0.13052803,87939.0,87919.0,0.12362442]
[1769534811084,0.13052803,87939.0,87920.0,0.02499321]
[1769534811284,0.0235808,87942.0,87921.0,0.12362442]
[1769534811492,0.15410883,87942.0,87921.0,0.12362442]
[1769534811694,0.0296292,87941.0,87921.0,0.12362442]
[1769534812314,0.06311604,87949.0,87924.0,0.02499321]
[1769534812489,0.06311604,87949.0,87926.0,0.12362442]
[1769534812490,0.19364407,87949.0,87926.0,0.12362442]
[1769534812636,0.13052803,87949.0,87927.0,0.02499321]
[1769534813261,0.0235808,87950.0,87928.0,0.12362442]
[1769534813489,0.06329149,87960.0,87939.0,0.02499321]
[1769534813705,0.0235808,87966.0,87941.0,0.12362442]
[1769534813706,0.13052803,87964.0,87941.0,0.12362442]
[1769534813901,0.13052803,87964.0,87942.0,0.02499321]
[1769534814196,0.13052803,87964.0,87943.0,0.02356571]
[1769534814750,0.13052803,87964.0,87944.0,0.02356571]
[1769534814915,0.13052803,87964.0,87943.0,0.12206867]
[1769534815114,0.13099312,87964.0,87944.0,0.02356571]
[1769534815319,0.13099312,87964.0,87944.0,0.13298139]
[1769534815502,0.00046509,87964.0,87944.0,0.12206867]
[1769534815703,0.00046509,87964.0,87948.0,0.12206867]
[1769534815903,0.00046509,87964.0,87950.0,0.12206867]
[1769534816489,0.00046509,87964.0,87951.0,0.01367615]
[1769534817709,0.01187939,87964.0,87951.0,0.01367615]
[1769534818139,0.00046509,87964.0,87952.0,0.12206867]
[1769534818779,0.00046509,87964.0,87952.0,0.14563438]
[1769534819710,0.05683053,87981.0,87954.0,0.12206867]
[1769534819913,0.05683053,87981.0,87951.0,0.01367615]
[1769534819914,0.02409778,87981.0,87957.0,0.02356571]
[1769534820126,0.02423723,87981.0,87959.0,0.01740811]
[1769534820274,0.02423723,87981.0,87965.0,0.01367615]
[1769534820485,0.00013945,87981.0,87966.0,0.12206867]
[1769534820808,0.1207538,87978.0,87956.0,0.14965168]
[1769534821023,0.02409778,87975.0,87956.0,0.01367615]
[1769534821215,0.02409778,87975.0,87949.0,0.02356571]
[1769534821216,0.02409778,87963.0,87944.0,0.13618442]
[1769534821561,0.02409778,87963.0,87923.0,0.02732]
[1769534821562,0.02409778,87979.0,87963.0,0.01]
[1769534821769,0.02409778,87979.0,87964.0,0.11347129]
[1769534821920,0.00013945,87981.0,87965.0,0.11347129]
[1769534822122,0.02423723,87981.0,87966.0,0.11347129]
[1769534822331,0.12089325,87981.0,87967.0,0.11347129]
[1769534822530,0.14485158,87980.0,87968.0,0.11347129]
[1769534822733,0.14485158,87980.0,87969.0,0.11347129]
[1769534822931,0.14485158,87980.0,87970.0,0.11347129]
[1769534823134,0.02409778,87980.0,87971.0,0.11347129]
[1769534823431,0.05683405,87976.0,87972.0,0.11347129]
[1769534823644,0.00011039,87972.0,87960.0,0.01367615]
[1769534823850,0.00011039,87972.0,87953.0,0.13618442]
[1769534824047,0.00011039,87972.0,87954.0,0.01367615]
[1769534824253,0.00011039,87972.0,87955.0,0.12206867]
[1769534824471,0.00011039,87972.0,87957.0,0.12206867]
[1769534824703,0.1207538,87979.0,87958.0,0.14563438]
[1769534824818,0.00013945,87981.0,87959.0,0.12206867]
[1769534825019,0.1207538,87979.0,87958.0,0.02356571]
[1769534825223,0.14485158,87979.0,87958.0,0.02356571]
[1769534825835,0.02409778,87968.0,87950.0,0.01367615]
[1769534826040,0.11598003,87967.0,87950.0,0.01367615]
[1769534826243,0.07311037,87968.0,87950.0,0.01367615]
[1769534826872,0.02409778,87970.0,87950.0,0.13574482]
[1769534827494,0.02409778,87970.0,87951.0,0.01367615]
[1769534827715,0.1207538,87968.0,87951.0,0.01367615]
[1769534827868,0.02409778,87967.0,87939.0,0.13618442]
[1769534828072,0.00011039,87951.0,87941.0,0.01367615]
[1769534828329,0.33998411,87961.0,87939.0,0.01367615]
[1769534828330,0.02409778,87954.0,87939.0,0.01367615]
[1769534828561,0.08094602,87954.0,87939.0,0.04034221]
[1769534828689,0.08094602,87954.0,87940.0,0.01367615]
[1769534828690,0.02409778,87954.0,87940.0,0.01367615]
[1769534828897,0.14485158,87954.0,87939.0,0.02666606]
[1769534829103,0.20169952,87954.0,87935.0,0.01367615]
[1769534829295,0.14485158,87954.0,87935.0,0.01414124]
[1769534829725,0.20169987,87954.0,87935.0,0.01414124]
[1769534829926,0.14485158,87954.0,87935.0,0.01414124]
[1769534830101,0.1207538,87949.0,87935.0,0.00046509]
[1769534830303,0.05685666,87941.0,87919.0,0.01367615]
[1769534830591,0.05685703,87940.0,87919.0,0.01381577]
[1769534830767,0.02409778,87941.0,87919.0,0.04144079]
[1769534830768,0.08095436,87941.0,87919.0,0.04144079]
[1769534830963,0.08095436,87941.0,87919.0,0.01381577]
[1769534830964,0.02409778,87941.0,87919.0,0.01381577]
[1769534831143,0.02409778,87941.0,87919.0,0.13588444]
[1769534831470,0.1207538,87940.0,87919.0,0.13588444]
[1769534831853,0.1207538,87940.0,87919.0,0.13614904]
[1769534832252,0.15706308,87940.0,87919.0,0.13614904]
[1769534832481,0.1207538,87940.0,87919.0,0.13614904]
[1769534832672,0.02409778,87941.0,87921.0,0.12206867]
[1769534833043,0.02409778,87947.0,87921.0,0.14563438]
[1769534833244,0.05685363,87946.0,87922.0,0.02356571]
[1769534833495,0.17760743,87946.0,87922.0,0.02356571]
[1769534833704,0.05685471,87944.0,87923.0,0.02765148]
[1769534833994,0.14485158,87946.0,87923.0,0.17328586]
[1769534834308,0.14485158,87946.0,87923.0,0.05121719]
[1769534834516,0.02409778,87959.0,87946.0,0.00988961]
[1769534834680,0.06236708,87967.0,87948.0,0.13574482]
[1769534834861,0.06236708,87967.0,87949.0,0.16255439]
[1769534835483,0.05683898,87968.0,87949.0,0.16255439]
[1769534835799,0.00046509,87968.0,87949.0,0.03825577]
[1769534836003,0.00046509,87968.0,87951.0,0.02356571]
[1769534836233,0.00046509,87968.0,87955.0,0.02356571]
[1769534836431,0.00046509,87968.0,87948.0,0.01367615]
[1769534836432,0.00046509,87968.0,87957.0,0.02356571]
[1769534836637,0.00046509,87968.0,87958.0,0.12206867]
[1769534836776,0.00046509,87968.0,87959.0,0.01456344]
[1769534836976,0.00046509,87968.0,87957.0,0.02356571]
[1769534837602,0.00046509,87968.0,87957.0,0.14563438]
[1769534838867,0.00046509,87968.0,87957.0,0.12206867]
[1769534839040,0.00046509,87968.0,87958.0,0.02356571]
[1769534839602,0.00046509,87968.0,87958.0,0.14563438]
[1769534839806,0.00046509,87968.0,87958.0,0.16019782]
[1769534840047,0.00046509,87968.0,87958.0,0.14563438]
[1769534841218,0.00046509,87968.0,87948.0,0.01367615]
[1769534841219,0.14485158,87989.0,87960.0,0.12206867]
[1769534841417,0.33828989,88051.0,87949.0,0.02356571]
[1769534841418,0.292366,87988.0,87949.0,0.02356571]
[1769534841623,0.02409778,87983.0,87953.0,0.02356571]
[1769534841822,0.05683101,87981.0,87955.0,0.02356571]
[1769534842091,0.06177624,87989.0,87965.0,0.02356571]
[1769534842092,0.1207538,87989.0,87965.0,0.02356571]
[1769534842294,0.05682881,87984.0,87967.0,0.02356571]
[1769534842465,0.05682791,87985.0,87968.0,0.01585744]
[1769534842674,0.05682818,87985.0,87968.0,0.01578383]
[1769534842880,0.05682849,87985.0,87968.0,0.01578383]
[1769534843421,0.05682849,87985.0,87968.0,0.0157102]
[1769534843682,0.1455705,87987.0,87968.0,0.0157102]
[1769534843889,0.1455705,87987.0,87949.0,0.00046509]
[1769534843890,0.12406043,88007.0,87978.0,0.11949179]
[1769534844092,0.12406043,88007.0,87981.0,0.14277324]
[1769534844093,0.0248167,88004.0,87981.0,0.14277324]
[1769534844293,0.06257358,88002.0,87981.0,0.14277324]
[1769534844500,0.0004,88007.0,87982.0,0.02435353]
[1769534844741,0.0004,88007.0,87985.0,0.12828297]
[1769534844894,0.0004,88007.0,87983.0,0.01367615]
[1769534844895,0.0004,88007.0,87987.0,0.1526365]
[1769534845097,0.0004,88007.0,87990.0,0.02435353]
[1769534845455,0.0004,88007.0,87992.0,0.02170039]
[1769534845681,0.0004,88007.0,87993.0,0.1526365]
[1769534846243,0.0004,88007.0,87993.0,0.02435353]
[1769534847022,0.05681516,88005.0,87992.0,0.00012689]
[1769534847223,0.05681657,88003.0,87992.0,0.00012689]
[1769534847452,0.22765565,88007.0,87987.0,0.03802968]
[1769534847643,0.33998411,88000.0,87945.0,0.22697404]
[1769534847893,0.08251966,88007.0,87967.0,0.02435353]
[1769534847894,0.33998411,87990.0,87967.0,0.02435353]
[1769534848088,0.02452177,87994.0,87970.0,0.12828297]
[1769534848291,0.02452177,87994.0,87971.0,0.12828297]
[1769534848488,0.20064253,87994.0,87972.0,0.02435353]
[1769534848664,0.14381992,87994.0,87972.0,0.03961718]
[1769534848863,0.14381992,87994.0,87977.0,0.01367615]
[1769534848864,0.0568236,87992.0,87977.0,0.01367615]
[1769534849608,0.11929815,87993.0,87972.0,0.02435353]
[1769534849811,0.02452177,87994.0,87962.0,0.02732]